Workbook

Sheet Data Entry (hidden)
A1: Data Entry Tab - do not print or otherwise include in ESTMA Report | L1: 1
A3: General Instructions
A4: Information entered in these cells will automatically populate mandatory cells in the cover page and payments tabs. Do not include this tab in your final ESTMA report published online. Once completed, right click on the "Data Entry" tab at the bottom of the worksheet and select "hide" to avoid printing the Data Entry page (do not delete the tab). Should you wish to bring the tab back, you can right click on any tab, select "unhide", and chose "Data Entry".
A6: Reporting Entity Information
A8: Reporting Entity Legal Name | C8: CNOOC Limited | E8: Enter the full legal name of the Reporting Entity.
A9: ESTMA ID Number | C9: E645951 | E9: Enter the ESTMA ID number that was provided when the Reporting Entity enrolled with Natural Resources Canada (NRCan). The formatting for all ESTMA IDs is "E" followed by a 6 digit number (e.g., E######). Reporting Entities that have not yet enrolled should do so as soon as possible. Visit the following link to enroll: www.nrcan.gc.ca/mining-materials/estma/18186.
A10: Reporting Year | B10: Start | C10: 2018-01-01 | E10: Enter the exact date of the start of the Reporting Entity's financial year as: YYYY-MM-DD.
B11: End | C11: 2018-12-31 | E11: Enter the exact date of the end of the Reporting Entity's financial year as YYYY-MM-DD. The reporting year should represent a full 12 month financial year. If the reporting year is less than 12 full months, a rational for the shortened year must be included in the submission email.
A12: Other Non-Reporting Entities Included in the Report | E12: This field is optional. You may enter the name of any non-Reporting Entity subsidiaries that have their payments disclosed in the report in this field. Reporting Entity subsidiaries included in a consolidated report are entered below.
A14: Consolidation
A16: Does this report include payments made by other Reporting Entities | C16: Yes | E16: Select the cell and click on the arrow that appears at the bottom right of the cell. Select "yes" if the ESTMA report contains payments that are made by subsidiaries that are Reporting Entities in their own right. Please review the Act and Technical Reporting Specifications to see if you qualify to use consolidation. Selecting "yes" will open an additional field where subsidiary information can be entered.
A17: =IF($C$16="yes","Additional Subsidiary Reporting Entities Included","") -> Additional Subsidiary Reporting Entities Included | C17: CNOOC Petroleum North America ULC E900333, CNOOC Canada Energy Ltd. E231597 | E17: Please enter the names and ESTMA identification Numbers for every Reporting Entity, beyond the Reporting Entity submitting the report, whose payments have been included in this submission. The names & ESTMA Identification Numbers must separated by comas (e.g. E123456 Sub Reporting Entity 1, E234567 Sub Reporting Entity 2, etc.).
A19: Report Information
A21: Currency of the Report | C21: CNY | E21: Select the currency of the report from the pick list (must be in Canadian dollars, or in the currency the Reporting Entity uses in its consolidated financial statements). Reports must only use one type of currency.
A22: Date Report Submitted | C22: 2019-05-24 | E22: Enter the date the report is submitted to NRCan in the format YYYY-MM-DD.
A24: Link to the Report | C24: http://www.cnoocltd.com/attach/0/09145dab71744aa6a1ccdfd4fcfa8e8e.xlsx | E24: Enter the web link to the ESTMA report. The link must lead directly to the report or to a landing page where the ESTMA report is clearly identified. The report must be publicly available online for five years. NRCan must be notified if the link provided is changed or invalid at any point in time.
A25: =IF('Cover Page - do not edit'!L1=2,"Report Version","") ->  | E25: =IF('Cover Page - do not edit'!$L$1=2,"Select the cell and click on the arrow to enter the version number of this report (e.g., first amendment would be entered as version 2).","") -> 
A27: Substitution
A29: Is this a Substituted Report | C29: No | E29: Select the cell and click on the arrow that appears at the bottom right of the cell. Select "yes" if this report is being submitted under a substitution determination. A listing of jurisdictions which have substitutable reporting requirements, as well as the process for submitting a substituted report can be found at the following link: www.nrcan.gc.ca/mining-materials/estma/18196.
A30: =IF($C$29="Yes","Original Jurisdiction of the Report","") ->  | E30: =IF($C$29="yes","Enter the jurisdiction under which the report was originally submitted.","") -> 
A31: =IF($C$29="Yes","Due date in other jurisdiction","") ->  | E31: =IF($C$29="yes","Enter the date when the report was due in the above jurisdiction in the format YYYY-MM-DD.","") -> 
A33: Attestation
A35: Attestation options:
A36: By Reporting Entity: In accordance with the requirements of the ESTMA, and in particular section 9 thereof, I attest I have reviewed the information contained in the ESTMA report for the entity(ies) listed above. Based on my knowledge, and having exercised reasonable diligence, the information in the ESTMA report is true, accurate and complete in all material respects for the purposes of the Act, for the reporting year listed above. | E36: Through Independent Audit: In accordance with the requirements of the ESTMA, and in particular section 9 thereof, I attest that I engaged an independent auditor to undertake an audit of the ESTMA report for the entity(ies) and reporting year listed above. Such an audit was conducted in accordance with the Technical Reporting Specifications issued by Natural Resources Canada for independent attestation of ESTMA reports. The auditor expressed an unmodified opinion, dated [ENTER DATE: YYYY-MM-DD], on the ESTMA report for the entity(ies) and period listed above. The independent auditor’s report can be found at [INSERT WEBLINK TO AUDIT OPINION POSTED ONLINE – link should be on same page as report link].
A38: Attestation Type Selected | C38: By Reporting Entity | E38: Select the cell and click on the arrow that appears at the bottom right of the cell. Please note that no modifications can be made to the language of the attestation.
A39: =IF($C$38="Through Independent Audit","Date of Audit Opinion","") ->  | E39: =IF($C$38="Through Independent Audit","Enter the date of the audit opinion.","") -> 
A40: =IF($C$38="Through Independent Audit","Audit Report Location","") ->  | E40: =IF(C38="Through independent audit","The audit report may be attached to the end of the ESTMA report, or a link to the website where the auditor's report is posted can be provided. Please indicate 'At End of Report,' or provide the audit report's website address.","") -> 
A42: Full Name of Director or Officer of Reporting Entity: | C42: Weizhi Xie | E42: Note: A physical signature is not required.
A43: Position Title: | C43: Chief Financial Officer | E43: Attestor must be a Director or an Officer of the Reporting Entity.
A44: Date: | C44: 2019-05-24 | E44: Enter date of attestation in YYYY-MM-DD format.
A46: Next Steps:
A48: 1. Right click on the "Data Entry" Tab and select hide to avoid printing the Data Entry page (do not delete the tab). Should you wish to bring the tab back, you can right click on any tab and select unhide, then chose Data Entry.
A50: 2. Proceed with entering the payment information in the Payments by Payee and Payments by Project tabs.

Sheet Cover Page - do not edit
A1: Extractive Sector Transparency Measures Act - Annual Report | L1: 1
A2: Reporting Entity Name | B2: =IF('Data Entry'!C8="","",'Data Entry'!C8) -> CNOOC Limited
A3: Reporting Year | B3: From | C3: =IF('Data Entry'!C10="","",'Data Entry'!C10) -> 2018-01-01 | D3: To: | E3: =IF('Data Entry'!C11="","",'Data Entry'!C11) -> 2018-12-31 | F3: Date submitted | G3: =IF('Data Entry'!C22="","",'Data Entry'!C22) -> 2019-05-24
A4: Reporting Entity ESTMA Identification Number | B4: =IF('Data Entry'!C9="","",'Data Entry'!C9) -> E645951 | F4: =IF(L1=1,"","Report Version") -> 
F5: =IF(L1=1,"",IF('Data Entry'!C25="","Enter Version Number of Report",'Data Entry'!C25)) -> 
A6: Other Subsidiaries Included (optional field) | B6: =IF('Data Entry'!C12="","",'Data Entry'!C12) -> 
A8: =IF('Data Entry'!C16="yes","For Consolidated Reports - Subsidiary Reporting Entities Included in Report:","Not Consolidated") -> For Consolidated Reports - Subsidiary Reporting Entities Included in Report: | B8: =IF('Data Entry'!C16="yes",IF('Data Entry'!C17="","",'Data Entry'!C17),"") -> CNOOC Petroleum North America ULC E900333, CNOOC Canada Energy Ltd. E231597
A10: =IF('Data Entry'!C29="yes","For Substituted Reports - Jurisdiction in which the Transparency Report was Originally Filed:","Not Substituted") -> Not Substituted | B10: =IF('Data Entry'!C29="yes",IF('Data Entry'!C30="","",'Data Entry'!C30),"") ->  | D10: =IF('Data Entry'!C29="yes","Report Due Date in Other Jurisdiction","") ->  | G10: =IF('Data Entry'!C29="yes",IF('Data Entry'!C31="","",'Data Entry'!C31),"") -> 
A12: =IF('Data Entry'!C38="By Reporting Entity","Attestation by Reporting Entity","Attestation Through Independent Audit") -> Attestation by Reporting Entity
A13: =IF('Data Entry'!C38="By Reporting Entity",RIGHT('Data Entry'!A36:C36,LEN('Data Entry'!A36:C36)-21),MID('Data Entry'!E36,28,452)&IF('Data Entry'!C39="","YYYY-MM-DD",TEXT('Data Entry'!C39,"yyyy-mm-dd"))&", on the ESTMA Report for the entity(ies) and period listed above. The independent auditor's report can be found at "&'Data Entry'!C40&".") -> In accordance with the requirements of the ESTMA, and in particular section 9 thereof, I attest I have reviewed the information contained in the ESTMA report for the entity(ies) listed above. Based on my knowledge, and having exercised reasonable diligence, the information in the ESTMA report is true, accurate and complete in all material respects for the purposes of the Act, for the reporting year listed above.
A20: Full Name of Director or Officer of Reporting Entity | B20: =IF('Data Entry'!C42="","",'Data Entry'!C42) -> Weizhi Xie | F20: Date | G20: =IF('Data Entry'!C44="","",'Data Entry'!C44) -> 2019-05-24
A21: Position Title | B21: =IF('Data Entry'!C43="","",'Data Entry'!C43) -> Chief Financial Officer

Sheet Payments by Payee
A1: Extractive Sector Transparency Measures Act - Annual Report | AC1: Canada | CW1: CAD
AC2: Canada -Alberta | CW2: USD
AC3: Canada -British Columbia | CW3: AED
A4: Reporting Year | B4: From: | C4: ='Cover Page - do not edit'!C3 -> 2018-01-01 | D4: To: | E4: ='Cover Page - do not edit'!E3 -> 2018-12-31 | AC4: Canada -Manitoba | CW4: ANG
A5: Reporting Entity Name | B5: ='Cover Page - do not edit'!B2:G2 -> CNOOC Limited | G5: Currency of the Report | H5: =IF('Data Entry'!C21="","",'Data Entry'!C21) -> CNY | AC5: Canada -New Brunswick | CW5: AUD
A6: Reporting Entity ESTMA Identification Number | B6: ='Cover Page - do not edit'!B4 -> E645951 | AC6: Canada -Newfoundland and Labrador | CW6: CDF
A7: Subsidiary Reporting Entities (if necessary) | B7: ='Cover Page - do not edit'!B8:G8 -> CNOOC Petroleum North America ULC E900333, CNOOC Canada Energy Ltd. E231597 | AC7: Canada -Northwest Territories | CW7: CHE
A8: Payments by Payee | AC8: Canada -Nova Scotia | CW8: CHF
A9: Country | B9: Payee Name1 | C9: Departments, Agency, etc… within Payee that Received Payments2 | D9: Taxes | E9: Royalties | F9: Fees | G9: Production Entitlements | H9: Bonuses | I9: Dividends | J9: Infrastructure Improvement Payments | K9: Total Amount paid to Payee | L9: Notes34 | AC9: Canada -Nunavut | CW9: CHW
A10: China | B10: Government of China | C10: Tax Authorities | D10: 17,663,860,000 | E10: 688,120,000 | F10: 0 | G10: 0 | H10: 0 | I10: 0 | J10: 0 | K10: =IF(SUM(Table2[[#This Row],[Taxes]:[Infrastructure Improvement Payments]])=0,"",SUM(Table2[[#This Row],[Taxes]:[Infrastructure Improvement Payments]])) -> 18,351,980,000 | L10: Taxes mainly include income tax, resource tax and production tax and so on. | AC10: Canada -Ontario | CW10: CLF
A11: China | B11: Government of China | C11: Ministry of Finance | D11: 2,036,250,000 | E11: 0 | F11: 0 | G11: 1,202,030,000 | H11: 0 | I11: 0 | J11: 0 | K11: =IF(SUM(Table2[[#This Row],[Taxes]:[Infrastructure Improvement Payments]])=0,"",SUM(Table2[[#This Row],[Taxes]:[Infrastructure Improvement Payments]])) -> 3,238,280,000 | AC11: Canada -Prince Edward Island | CW11: CLP
A12: China | B12: Government of China | C12: State Oceanic Administration | D12: 0 | E12: 0 | F12: 62,420,000 | G12: 0 | H12: 0 | I12: 0 | J12: 0 | K12: =IF(SUM(Table2[[#This Row],[Taxes]:[Infrastructure Improvement Payments]])=0,"",SUM(Table2[[#This Row],[Taxes]:[Infrastructure Improvement Payments]])) -> 62,420,000 | L12: Mainly include marine use fees | AC12: Canada -Saskatchewan | CW12: COP
A13: China | B13: Government of China | C13: Customs | D13: 26,980,000 | E13: 0 | F13: 0 | G13: 0 | H13: 0 | I13: 0 | J13: 0 | K13: =IF(SUM(Table2[[#This Row],[Taxes]:[Infrastructure Improvement Payments]])=0,"",SUM(Table2[[#This Row],[Taxes]:[Infrastructure Improvement Payments]])) -> 26,980,000 | AC13: Canada -Yukon | CW13: COU
A14: China | B14: Government of China | C14: Competent Administrative Departments for Environmental Protection | D14: 0 | E14: 0 | F14: 1,240,000 | G14: 0 | H14: 0 | I14: 0 | J14: 0 | K14: =IF(SUM(Table2[[#This Row],[Taxes]:[Infrastructure Improvement Payments]])=0,"",SUM(Table2[[#This Row],[Taxes]:[Infrastructure Improvement Payments]])) -> 1,240,000 | AC14: Afghanistan | CW14: CRC
A15: China | B15: Government of China | C15: Fishery Administrative Department | D15: 0 | E15: 0 | F15: 10,060,000 | G15: 0 | H15: 0 | I15: 0 | J15: 0 | K15: =IF(SUM(Table2[[#This Row],[Taxes]:[Infrastructure Improvement Payments]])=0,"",SUM(Table2[[#This Row],[Taxes]:[Infrastructure Improvement Payments]])) -> 10,060,000 | AC15: Åland Islands | CW15: CUC
A16: Australia | B16: Government of Australia | C16: Australian Taxation Office(ATO) | D16: 209,480,000 | E16: 0 | F16: 0 | G16: 0 | H16: 0 | I16: 0 | J16: 0 | K16: =IF(SUM(Table2[[#This Row],[Taxes]:[Infrastructure Improvement Payments]])=0,"",SUM(Table2[[#This Row],[Taxes]:[Infrastructure Improvement Payments]])) -> 209,480,000 | AC16: Albania | CW16: CUP
A17: Australia | B17: Government of Australia | C17: Department of Mining and Petroleum(DMP) | D17: 0 | E17: 107,220,000 | F17: 0 | G17: 0 | H17: 0 | I17: 0 | J17: 0 | K17: =IF(SUM(Table2[[#This Row],[Taxes]:[Infrastructure Improvement Payments]])=0,"",SUM(Table2[[#This Row],[Taxes]:[Infrastructure Improvement Payments]])) -> 107,220,000 | AC17: Algeria | CW17: CVE
A18: Congo | B18: Government of Congo | C18: HUREAU DE ENREGISTEMENT DES DOMAINES ETDU TIMBRE DE POINTE-NOIRE CENTRE(EDT) | D18: 240,000 | E18: 0 | F18: 0 | G18: 0 | H18: 0 | I18: 0 | J18: 0 | K18: =IF(SUM(Table2[[#This Row],[Taxes]:[Infrastructure Improvement Payments]])=0,"",SUM(Table2[[#This Row],[Taxes]:[Infrastructure Improvement Payments]])) -> 240,000 | AC18: American Samoa | CW18: CZK
A19: Congo | B19: Government of Congo | C19: MINISTERE DES HYDROCARBURES DE LA REPUBLIQUE DU CONGO | D19: 0 | E19: 10,000 | F19: 0 | G19: 0 | H19: 0 | I19: 0 | J19: 0 | K19: =IF(SUM(Table2[[#This Row],[Taxes]:[Infrastructure Improvement Payments]])=0,"",SUM(Table2[[#This Row],[Taxes]:[Infrastructure Improvement Payments]])) -> 10,000 | AC19: Andorra | CW19: DJF
A20: Congo | B20: Government of Congo | C20: Société Nationale des Pétroles du Congo | D20: 0 | E20: 0 | F20: 400,000 | G20: 0 | H20: 0 | I20: 0 | J20: 0 | K20: =IF(SUM(Table2[[#This Row],[Taxes]:[Infrastructure Improvement Payments]])=0,"",SUM(Table2[[#This Row],[Taxes]:[Infrastructure Improvement Payments]])) -> 400,000
A21: Congo | B21: Government of Congo | C21: Ministry of Hydrocarbons, Republic of Congo | D21: 0 | E21: 0 | F21: 1,650,000 | G21: 0 | H21: 0 | I21: 0 | J21: 0 | K21: =IF(SUM(Table2[[#This Row],[Taxes]:[Infrastructure Improvement Payments]])=0,"",SUM(Table2[[#This Row],[Taxes]:[Infrastructure Improvement Payments]])) -> 1,650,000
A22: Indonesia | B22: Government of Indonesia | C22: Director General of Tax(DGT) | D22: 869,180,000 | E22: 0 | F22: 0 | G22: 0 | H22: 0 | I22: 0 | J22: 0 | K22: =IF(SUM(Table2[[#This Row],[Taxes]:[Infrastructure Improvement Payments]])=0,"",SUM(Table2[[#This Row],[Taxes]:[Infrastructure Improvement Payments]])) -> 869,180,000
A23: Uganda | B23: Government of Uganda | C23: Ministry of Energy&Mineral Department | D23: 0 | E23: 0 | F23: 2,140,000 | G23: 0 | H23: 0 | I23: 0 | J23: 0 | K23: =IF(SUM(Table2[[#This Row],[Taxes]:[Infrastructure Improvement Payments]])=0,"",SUM(Table2[[#This Row],[Taxes]:[Infrastructure Improvement Payments]])) -> 2,140,000
A24: Trinidad and Tobago | B24: Government of Trinidad and Tobago | C24: The Ministry of Energy and Energy Industries | D24: 0 | E24: 0 | F24: 2,640,000 | G24: 0 | H24: 0 | I24: 0 | J24: 0 | K24: =IF(SUM(Table2[[#This Row],[Taxes]:[Infrastructure Improvement Payments]])=0,"",SUM(Table2[[#This Row],[Taxes]:[Infrastructure Improvement Payments]])) -> 2,640,000
A25: Equatorial Guinea | B25: Government of Equatorial Guinea | C25: emsegel | D25: 0 | E25: 0 | F25: 380,000 | G25: 0 | H25: 0 | I25: 0 | J25: 0 | K25: =IF(SUM(Table2[[#This Row],[Taxes]:[Infrastructure Improvement Payments]])=0,"",SUM(Table2[[#This Row],[Taxes]:[Infrastructure Improvement Payments]])) -> 380,000
A26: Equatorial Guinea | B26: Government of Equatorial Guinea | C26: instituto tecnologico nacional | D26: 0 | E26: 0 | F26: 400,000 | G26: 0 | H26: 0 | I26: 0 | J26: 0 | K26: =IF(SUM(Table2[[#This Row],[Taxes]:[Infrastructure Improvement Payments]])=0,"",SUM(Table2[[#This Row],[Taxes]:[Infrastructure Improvement Payments]])) -> 400,000
A27: Equatorial Guinea | B27: Government of Equatorial Guinea | C27: tesoreria general del estado | D27: 0 | E27: 0 | F27: 1,160,000 | G27: 0 | H27: 0 | I27: 0 | J27: 0 | K27: =IF(SUM(Table2[[#This Row],[Taxes]:[Infrastructure Improvement Payments]])=0,"",SUM(Table2[[#This Row],[Taxes]:[Infrastructure Improvement Payments]])) -> 1,160,000
A28: Mexico | B28: Government of Mexico | C28: SAT (Tax Administration System) | D28: 25,050,000 | E28: 0 | F28: 0 | G28: 0 | H28: 0 | I28: 0 | J28: 0 | K28: =IF(SUM(Table2[[#This Row],[Taxes]:[Infrastructure Improvement Payments]])=0,"",SUM(Table2[[#This Row],[Taxes]:[Infrastructure Improvement Payments]])) -> 25,050,000
A29: Mexico | B29: Government of Mexico | C29: FMP (Mexico Petroleum Fund for Stabilization and Development ) | D29: 0 | E29: 0 | F29: 18,980,000 | G29: 0 | H29: 0 | I29: 0 | J29: 0 | K29: =IF(SUM(Table2[[#This Row],[Taxes]:[Infrastructure Improvement Payments]])=0,"",SUM(Table2[[#This Row],[Taxes]:[Infrastructure Improvement Payments]])) -> 18,980,000
A30: Brazil | B30: Government of Brazil | C30: Federal Tax Authority of Brazil | D30: 2,070,000 | E30: 66,450,000 | F30: 0 | G30: 0 | H30: 0 | I30: 0 | J30: 0 | K30: =IF(SUM(Table2[[#This Row],[Taxes]:[Infrastructure Improvement Payments]])=0,"",SUM(Table2[[#This Row],[Taxes]:[Infrastructure Improvement Payments]])) -> 68,520,000
A31: Brazil | B31: Government of Brazil | C31: National Agency of Petroleum, Natural Gas and Biofuels | D31: 0 | E31: 0 | F31: 0 | G31: 0 | H31: 264,290,000 | I31: 0 | J31: 0 | K31: =IF(SUM(Table2[[#This Row],[Taxes]:[Infrastructure Improvement Payments]])=0,"",SUM(Table2[[#This Row],[Taxes]:[Infrastructure Improvement Payments]])) -> 264,290,000
A32: United States of America | B32: United States Federal Government | C32: Bureau of Safety & Environmental Enforcement (BSEE) | D32: 0 | E32: 0 | F32: 130,000 | G32: 0 | H32: 0 | I32: 0 | J32: 0 | K32: =IF(SUM(Table2[[#This Row],[Taxes]:[Infrastructure Improvement Payments]])=0,"",SUM(Table2[[#This Row],[Taxes]:[Infrastructure Improvement Payments]])) -> 130,000
A33: United States of America | B33: United States Federal Government | C33: Minerals Management Services (MMS) | D33: 0 | E33: 116,930,000 | F33: 0 | G33: 0 | H33: 0 | I33: 0 | J33: 0 | K33: =IF(SUM(Table2[[#This Row],[Taxes]:[Infrastructure Improvement Payments]])=0,"",SUM(Table2[[#This Row],[Taxes]:[Infrastructure Improvement Payments]])) -> 116,930,000
A34: United States of America | B34: State of Colorado | D34: 3,610,000 | E34: 0 | F34: 0 | G34: 0 | H34: 0 | I34: 0 | J34: 0 | K34: =IF(SUM(Table2[[#This Row],[Taxes]:[Infrastructure Improvement Payments]])=0,"",SUM(Table2[[#This Row],[Taxes]:[Infrastructure Improvement Payments]])) -> 3,610,000
A35: United States of America | B35: State of Texas | D35: 292,550,000 | E35: 7,720,000 | F35: 0 | G35: 0 | H35: 0 | I35: 0 | J35: 0 | K35: =IF(SUM(Table2[[#This Row],[Taxes]:[Infrastructure Improvement Payments]])=0,"",SUM(Table2[[#This Row],[Taxes]:[Infrastructure Improvement Payments]])) -> 300,270,000
A36: United States of America | B36: State of Wyoming | D36: 63,750,000 | E36: 0 | F36: 0 | G36: 0 | H36: 0 | I36: 0 | J36: 0 | K36: =IF(SUM(Table2[[#This Row],[Taxes]:[Infrastructure Improvement Payments]])=0,"",SUM(Table2[[#This Row],[Taxes]:[Infrastructure Improvement Payments]])) -> 63,750,000
A37: United States of America | B37: United States Federal Government | C37: Office of Natural Resource Revenue (ONRR) | D37: 0 | E37: 0 | F37: 2,300,000 | G37: 0 | H37: 0 | I37: 0 | J37: 0 | K37: =IF(SUM(Table2[[#This Row],[Taxes]:[Infrastructure Improvement Payments]])=0,"",SUM(Table2[[#This Row],[Taxes]:[Infrastructure Improvement Payments]])) -> 2,300,000
A38: United States of America | B38: UNIVERSITY OF UTAH- ENERGY & GEOSCI | C38: UNIVERSITY OF UTAH- ENERGY & GEOSCI | D38: 0 | E38: 0 | F38: 1,500,000 | G38: 0 | H38: 0 | I38: 0 | J38: 0 | K38: =IF(SUM(Table2[[#This Row],[Taxes]:[Infrastructure Improvement Payments]])=0,"",SUM(Table2[[#This Row],[Taxes]:[Infrastructure Improvement Payments]])) -> 1,500,000
A39: Colombia | B39: Government of Colombia | C39: Dirección de Impuestos y Aduanas Nacionales (DIAN) (Colombian Tax and Customs Organization). | D39: 5,140,000 | E39: 0 | F39: 0 | G39: 0 | H39: 0 | I39: 0 | J39: 0 | K39: =IF(SUM(Table2[[#This Row],[Taxes]:[Infrastructure Improvement Payments]])=0,"",SUM(Table2[[#This Row],[Taxes]:[Infrastructure Improvement Payments]])) -> 5,140,000
A40: Colombia | B40: Government of Colombia | C40: Ecopetrol | D40: 0 | E40: 0 | F40: 0 | G40: 7,660,000 | H40: 0 | I40: 0 | J40: 0 | K40: =IF(SUM(Table2[[#This Row],[Taxes]:[Infrastructure Improvement Payments]])=0,"",SUM(Table2[[#This Row],[Taxes]:[Infrastructure Improvement Payments]])) -> 7,660,000
A41: Guyana | B41: Government of Guyana | D41: 0 | E41: 0 | F41: 2,150,000 | G41: 0 | H41: 0 | I41: 0 | J41: 0 | K41: =IF(SUM(Table2[[#This Row],[Taxes]:[Infrastructure Improvement Payments]])=0,"",SUM(Table2[[#This Row],[Taxes]:[Infrastructure Improvement Payments]])) -> 2,150,000
A42: Nigeria | B42: Government of Nigeria | C42: Federal Inland Revenue Services (FIRS) | D42: 116,890,000 | E42: 0 | F42: 0 | G42: 0 | H42: 0 | I42: 0 | J42: 0 | K42: =IF(SUM(Table2[[#This Row],[Taxes]:[Infrastructure Improvement Payments]])=0,"",SUM(Table2[[#This Row],[Taxes]:[Infrastructure Improvement Payments]])) -> 116,890,000
A43: Nigeria | B43: Government of Nigeria | C43: Nigeria Delta Development Commission (NDDC) | D43: 0 | E43: 0 | F43: 206,470,000 | G43: 0 | H43: 0 | I43: 0 | J43: 0 | K43: =IF(SUM(Table2[[#This Row],[Taxes]:[Infrastructure Improvement Payments]])=0,"",SUM(Table2[[#This Row],[Taxes]:[Infrastructure Improvement Payments]])) -> 206,470,000
A44: Nigeria | B44: Government of Nigeria | C44: Nigeria Export Supervision Scheme (NESS) | D44: 0 | E44: 0 | F44: 1,970,000 | G44: 0 | H44: 0 | I44: 0 | J44: 0 | K44: =IF(SUM(Table2[[#This Row],[Taxes]:[Infrastructure Improvement Payments]])=0,"",SUM(Table2[[#This Row],[Taxes]:[Infrastructure Improvement Payments]])) -> 1,970,000
A45: Nigeria | B45: Government of Nigeria | C45: Nigeria Petroleum Exchange (NIPEX) | D45: 0 | E45: 0 | F45: 220,000 | G45: 0 | H45: 0 | I45: 0 | J45: 0 | K45: =IF(SUM(Table2[[#This Row],[Taxes]:[Infrastructure Improvement Payments]])=0,"",SUM(Table2[[#This Row],[Taxes]:[Infrastructure Improvement Payments]])) -> 220,000
A46: Nigeria | B46: Government of Nigeria | C46: Nigerian National Petroleum Corporation (NNPC) | D46: 0 | E46: 353,700,000 | F46: 20,000 | G46: 0 | H46: 0 | I46: 0 | J46: 0 | K46: =IF(SUM(Table2[[#This Row],[Taxes]:[Infrastructure Improvement Payments]])=0,"",SUM(Table2[[#This Row],[Taxes]:[Infrastructure Improvement Payments]])) -> 353,720,000
A47: Nigeria | B47: Government of Nigeria | C47: Deep Offshore Community Affairs Group (DOCAG) Projects | D47: 0 | E47: 0 | F47: 0 | G47: 0 | H47: 0 | I47: 0 | J47: 60,000 | K47: =IF(SUM(Table2[[#This Row],[Taxes]:[Infrastructure Improvement Payments]])=0,"",SUM(Table2[[#This Row],[Taxes]:[Infrastructure Improvement Payments]])) -> 60,000 | AC47: Angola | CW47: DKK
A48: Nigeria | B48: Government of Nigeria | C48: Kaduna State government | D48: 0 | E48: 0 | F48: 0 | G48: 0 | H48: 0 | I48: 0 | J48: 630,000 | K48: =IF(SUM(Table2[[#This Row],[Taxes]:[Infrastructure Improvement Payments]])=0,"",SUM(Table2[[#This Row],[Taxes]:[Infrastructure Improvement Payments]])) -> 630,000 | AC48: Anguilla | CW48: DOP
A49: United Kingdom of Great Britain and Northern Ireland | B49: UK Government | C49: Department of Business Energy & Industrial Strategy | D49: 0 | E49: 0 | F49: 3,550,000 | G49: 0 | H49: 0 | I49: 0 | J49: 0 | K49: =IF(SUM(Table2[[#This Row],[Taxes]:[Infrastructure Improvement Payments]])=0,"",SUM(Table2[[#This Row],[Taxes]:[Infrastructure Improvement Payments]])) -> 3,550,000
A50: United Kingdom of Great Britain and Northern Ireland | B50: UK Government | C50: Health and Safety Executive | D50: 0 | E50: 0 | F50: 4,190,000 | G50: 0 | H50: 0 | I50: 0 | J50: 0 | K50: =IF(SUM(Table2[[#This Row],[Taxes]:[Infrastructure Improvement Payments]])=0,"",SUM(Table2[[#This Row],[Taxes]:[Infrastructure Improvement Payments]])) -> 4,190,000
A51: United Kingdom of Great Britain and Northern Ireland | B51: UK Government | C51: Her Majesty's Revenue and Customs (HMRC) | D51: 4,065,820,000 | E51: 0 | F51: 0 | G51: 0 | H51: 0 | I51: 0 | J51: 0 | K51: =IF(SUM(Table2[[#This Row],[Taxes]:[Infrastructure Improvement Payments]])=0,"",SUM(Table2[[#This Row],[Taxes]:[Infrastructure Improvement Payments]])) -> 4,065,820,000
A52: United Kingdom of Great Britain and Northern Ireland | B52: UK Government | C52: Oil & Gas Authority | D52: 0 | E52: 0 | F52: 58,950,000 | G52: 0 | H52: 0 | I52: 0 | J52: 0 | K52: =IF(SUM(Table2[[#This Row],[Taxes]:[Infrastructure Improvement Payments]])=0,"",SUM(Table2[[#This Row],[Taxes]:[Infrastructure Improvement Payments]])) -> 58,950,000
A53: United Kingdom of Great Britain and Northern Ireland | B53: UK Government | C53: The Met Office (UK National Weather Serivce) | D53: 0 | E53: 0 | F53: 230,000 | G53: 0 | H53: 0 | I53: 0 | J53: 0 | K53: =IF(SUM(Table2[[#This Row],[Taxes]:[Infrastructure Improvement Payments]])=0,"",SUM(Table2[[#This Row],[Taxes]:[Infrastructure Improvement Payments]])) -> 230,000
A54: United Kingdom of Great Britain and Northern Ireland | B54: UK Government | C54: The Oil and Gas Technology Centre | D54: 0 | E54: 0 | F54: 1,830,000 | G54: 0 | H54: 0 | I54: 0 | J54: 0 | K54: =IF(SUM(Table2[[#This Row],[Taxes]:[Infrastructure Improvement Payments]])=0,"",SUM(Table2[[#This Row],[Taxes]:[Infrastructure Improvement Payments]])) -> 1,830,000
A55: Ireland | B55: Government of Ireland | C55: Department of Communications, Climate change and Energy | D55: 0 | E55: 0 | F55: 1,460,000 | G55: 0 | H55: 0 | I55: 0 | J55: 0 | K55: =IF(SUM(Table2[[#This Row],[Taxes]:[Infrastructure Improvement Payments]])=0,"",SUM(Table2[[#This Row],[Taxes]:[Infrastructure Improvement Payments]])) -> 1,460,000
A56: Ireland | B56: Government of Ireland | C56: Commission for Regulation of Utilities | D56: 0 | E56: 0 | F56: 460,000 | G56: 0 | H56: 0 | I56: 0 | J56: 0 | K56: =IF(SUM(Table2[[#This Row],[Taxes]:[Infrastructure Improvement Payments]])=0,"",SUM(Table2[[#This Row],[Taxes]:[Infrastructure Improvement Payments]])) -> 460,000
A57: Senegal | B57: Government of Senegal | C57: Chef du Division du Recouvrement Senegal | D57: 0 | E57: 0 | F57: 4,420,000 | G57: 0 | H57: 0 | I57: 0 | J57: 0 | K57: =IF(SUM(Table2[[#This Row],[Taxes]:[Infrastructure Improvement Payments]])=0,"",SUM(Table2[[#This Row],[Taxes]:[Infrastructure Improvement Payments]])) -> 4,420,000
A58: Senegal | B58: Government of Senegal | C58: Agence de Gestion et de Cooperation | D58: 0 | E58: 0 | F58: 830,000 | G58: 0 | H58: 0 | I58: 0 | J58: 0 | K58: =IF(SUM(Table2[[#This Row],[Taxes]:[Infrastructure Improvement Payments]])=0,"",SUM(Table2[[#This Row],[Taxes]:[Infrastructure Improvement Payments]])) -> 830,000
A59: Canada | B59: Provincial Government of Alberta | C59: Alberta Energy Regulator | D59: 0 | E59: 0 | F59: 8,440,000 | G59: 0 | H59: 0 | I59: 0 | J59: 0 | K59: =IF(SUM(Table2[[#This Row],[Taxes]:[Infrastructure Improvement Payments]])=0,"",SUM(Table2[[#This Row],[Taxes]:[Infrastructure Improvement Payments]])) -> 8,440,000
A60: Canada | B60: Provincial Government of Alberta | C60: Alberta Infrastructure | D60: 0 | E60: 0 | F60: 70,000 | G60: 0 | H60: 0 | I60: 0 | J60: 0 | K60: =IF(SUM(Table2[[#This Row],[Taxes]:[Infrastructure Improvement Payments]])=0,"",SUM(Table2[[#This Row],[Taxes]:[Infrastructure Improvement Payments]])) -> 70,000
A61: Canada | B61: Anzac Volunteer Fire Department | C61: Anzac Volunteer Fire Department | D61: 0 | E61: 0 | F61: 210,000 | G61: 0 | H61: 0 | I61: 0 | J61: 0 | K61: =IF(SUM(Table2[[#This Row],[Taxes]:[Infrastructure Improvement Payments]])=0,"",SUM(Table2[[#This Row],[Taxes]:[Infrastructure Improvement Payments]])) -> 210,000
A62: Canada | B62: Provincial Government of Alberta | C62: Provincial Government of Alberta | D62: 60,000 | E62: 0 | F62: 9,350,000 | G62: 0 | H62: 0 | I62: 0 | J62: 0 | K62: =IF(SUM(Table2[[#This Row],[Taxes]:[Infrastructure Improvement Payments]])=0,"",SUM(Table2[[#This Row],[Taxes]:[Infrastructure Improvement Payments]])) -> 9,410,000
A63: Canada | B63: Provincial Government of Alberta | C63: Minister of Finance Province of Alberta Energy | D63: 0 | E63: 0 | F63: 4,800,000 | G63: 0 | H63: 0 | I63: 0 | J63: 0 | K63: =IF(SUM(Table2[[#This Row],[Taxes]:[Infrastructure Improvement Payments]])=0,"",SUM(Table2[[#This Row],[Taxes]:[Infrastructure Improvement Payments]])) -> 4,800,000
A64: Canada | B64: Provincial Government of British Columbia | C64: BC Oil & Gas Commission | D64: 0 | E64: 0 | F64: 3,940,000 | G64: 0 | H64: 0 | I64: 0 | J64: 0 | K64: =IF(SUM(Table2[[#This Row],[Taxes]:[Infrastructure Improvement Payments]])=0,"",SUM(Table2[[#This Row],[Taxes]:[Infrastructure Improvement Payments]])) -> 3,940,000
A65: Canada | B65: Northern Rockies Regional Municipality | C65: Northern Rockies Regional Municipality | D65: 2,730,000 | E65: 0 | F65: 0 | G65: 0 | H65: 0 | I65: 0 | J65: 0 | K65: =IF(SUM(Table2[[#This Row],[Taxes]:[Infrastructure Improvement Payments]])=0,"",SUM(Table2[[#This Row],[Taxes]:[Infrastructure Improvement Payments]])) -> 2,730,000
A66: Canada | B66: Provincial Government of British Columbia | C66: Province of British Columbia, Ministry of Energy and Mines | D66: 0 | E66: 0 | F66: 4,230,000 | G66: 0 | H66: 0 | I66: 0 | J66: 0 | K66: =IF(SUM(Table2[[#This Row],[Taxes]:[Infrastructure Improvement Payments]])=0,"",SUM(Table2[[#This Row],[Taxes]:[Infrastructure Improvement Payments]])) -> 4,230,000
A67: Canada | B67: Provincial Government of Alberta | C67: Provincial Treasurer of Alberta - Alberta Energy | D67: 0 | E67: 103,460,000 | F67: 0 | G67: 0 | H67: 0 | I67: 0 | J67: 0 | K67: =IF(SUM(Table2[[#This Row],[Taxes]:[Infrastructure Improvement Payments]])=0,"",SUM(Table2[[#This Row],[Taxes]:[Infrastructure Improvement Payments]])) -> 103,460,000 | AC67: Antarctica | CW67: EGP
A68: Canada | B68: Federal Government of Canada | C68: Receiver General for Canada - Natural Resources Canada - Accounts Receivable and Revenue Unit | D68: 0 | E68: 0 | F68: 3,830,000 | G68: 0 | H68: 0 | I68: 0 | J68: 0 | K68: =IF(SUM(Table2[[#This Row],[Taxes]:[Infrastructure Improvement Payments]])=0,"",SUM(Table2[[#This Row],[Taxes]:[Infrastructure Improvement Payments]])) -> 3,830,000 | AC68: Antigua and Barbuda | CW68: ERN
A69: Canada | B69: Regional Municipality of Wood Buffalo | C69: Regional Municipality of Wood Buffalo | D69: 63,260,000 | E69: 0 | F69: 0 | G69: 0 | H69: 0 | I69: 0 | J69: 0 | K69: =IF(SUM(Table2[[#This Row],[Taxes]:[Infrastructure Improvement Payments]])=0,"",SUM(Table2[[#This Row],[Taxes]:[Infrastructure Improvement Payments]])) -> 63,260,000 | AC69: Argentina | CW69: ETB
A70: Canada | B70: Municipality of Wood Buffalo | C70: Regional Recreation Centre of Wood Buffalo | D70: 0 | E70: 0 | F70: 1,000,000 | G70: 0 | H70: 0 | I70: 0 | J70: 0 | K70: =IF(SUM(Table2[[#This Row],[Taxes]:[Infrastructure Improvement Payments]])=0,"",SUM(Table2[[#This Row],[Taxes]:[Infrastructure Improvement Payments]])) -> 1,000,000 | AC70: Armenia | CW70: EUR
A71: Canada | B71: Provincial Government of Saskatchewan | C71: Saskatchewan Research Council | D71: 0 | E71: 0 | F71: 3,970,000 | G71: 0 | H71: 0 | I71: 0 | J71: 0 | K71: =IF(SUM(Table2[[#This Row],[Taxes]:[Infrastructure Improvement Payments]])=0,"",SUM(Table2[[#This Row],[Taxes]:[Infrastructure Improvement Payments]])) -> 3,970,000 | AC71: Aruba | CW71: FJD
A72: Canada | B72: The City of Calgary | C72: The City of Calgary | D72: 60,000 | E72: 0 | F72: 0 | G72: 0 | H72: 0 | I72: 0 | J72: 0 | K72: =IF(SUM(Table2[[#This Row],[Taxes]:[Infrastructure Improvement Payments]])=0,"",SUM(Table2[[#This Row],[Taxes]:[Infrastructure Improvement Payments]])) -> 60,000 | AC72: Australia | CW72: FKP
A73: Canada | B73: Federal Government of Canada | C73: Natural Resources Canada | D73: 0 | E73: 0 | F73: 450,000 | G73: 0 | H73: 0 | I73: 0 | J73: 0 | K73: =IF(SUM(Table2[[#This Row],[Taxes]:[Infrastructure Improvement Payments]])=0,"",SUM(Table2[[#This Row],[Taxes]:[Infrastructure Improvement Payments]])) -> 450,000
A74: Canada | B74: Municipality of Lake Athabasca | C74: Lake Athabasca Youth Council and Janvier Sekweha Youth Centre | D74: 0 | E74: 0 | F74: 420,000 | G74: 0 | H74: 0 | I74: 0 | J74: 0 | K74: =IF(SUM(Table2[[#This Row],[Taxes]:[Infrastructure Improvement Payments]])=0,"",SUM(Table2[[#This Row],[Taxes]:[Infrastructure Improvement Payments]])) -> 420,000
A75: Canada | B75: Provincial Government of Newfoundland and Labrador | C75: Canada Newfoundland and Labrador Offshore Petroleum Board | D75: 0 | E75: 0 | F75: 620,000 | G75: 0 | H75: 0 | I75: 0 | J75: 0 | K75: =IF(SUM(Table2[[#This Row],[Taxes]:[Infrastructure Improvement Payments]])=0,"",SUM(Table2[[#This Row],[Taxes]:[Infrastructure Improvement Payments]])) -> 620,000
A76: Canada | B76: Rocky View County | C76: Rocky View County | D76: 330,000 | E76: 0 | F76: 0 | G76: 0 | H76: 0 | I76: 0 | J76: 0 | K76: =IF(SUM(Table2[[#This Row],[Taxes]:[Infrastructure Improvement Payments]])=0,"",SUM(Table2[[#This Row],[Taxes]:[Infrastructure Improvement Payments]])) -> 330,000
A77: Canada | B77: F&G CONTROLS INC. | C77: F&G CONTROLS INC. | D77: 0 | E77: 0 | F77: 210,000 | G77: 0 | H77: 0 | I77: 0 | J77: 0 | K77: =IF(SUM(Table2[[#This Row],[Taxes]:[Infrastructure Improvement Payments]])=0,"",SUM(Table2[[#This Row],[Taxes]:[Infrastructure Improvement Payments]])) -> 210,000
A78: Canada | B78: Federal Government of Canada | C78: THE CONFERENCE BOARD OF CANADA | D78: 0 | E78: 0 | F78: 190,000 | G78: 0 | H78: 0 | I78: 0 | J78: 0 | K78: =IF(SUM(Table2[[#This Row],[Taxes]:[Infrastructure Improvement Payments]])=0,"",SUM(Table2[[#This Row],[Taxes]:[Infrastructure Improvement Payments]])) -> 190,000
A79: Canada | B79: FORT MCMURRAY FIRST NATION | D79: 0 | E79: 0 | F79: 520,000 | G79: 0 | H79: 0 | I79: 0 | J79: 0 | K79: =IF(SUM(Table2[[#This Row],[Taxes]:[Infrastructure Improvement Payments]])=0,"",SUM(Table2[[#This Row],[Taxes]:[Infrastructure Improvement Payments]])) -> 520,000
A80: Canada | B80: Provincial Government of Alberta | C80: ALBERTA CHAMBER OF RESOURCES | D80: 0 | E80: 0 | F80: 90,000 | G80: 0 | H80: 0 | I80: 0 | J80: 0 | K80: =IF(SUM(Table2[[#This Row],[Taxes]:[Infrastructure Improvement Payments]])=0,"",SUM(Table2[[#This Row],[Taxes]:[Infrastructure Improvement Payments]])) -> 90,000
A81: Canada | B81: TOWN OF FORT ERIE | C81: TOWN OF FORT ERIE | D81: 30,000 | E81: 0 | F81: 0 | G81: 0 | H81: 0 | I81: 0 | J81: 0 | K81: =IF(SUM(Table2[[#This Row],[Taxes]:[Infrastructure Improvement Payments]])=0,"",SUM(Table2[[#This Row],[Taxes]:[Infrastructure Improvement Payments]])) -> 30,000
A82: Ghana | B82: Government of Ghana | C82: MINISTRY OF ENERGY | D82: 0 | E82: 0 | F82: 70,000 | G82: 0 | H82: 0 | I82: 0 | J82: 0 | K82: =IF(SUM(Table2[[#This Row],[Taxes]:[Infrastructure Improvement Payments]])=0,"",SUM(Table2[[#This Row],[Taxes]:[Infrastructure Improvement Payments]])) -> 70,000
K83: =IF(SUM(Table2[[#This Row],[Taxes]:[Infrastructure Improvement Payments]])=0,"",SUM(Table2[[#This Row],[Taxes]:[Infrastructure Improvement Payments]])) -> 
B84: Total | D84: =SUBTOTAL(109,D10:D83) -> 25,447,340,000 | E84: 1,443,610,000 | F84: 434,560,000 | G84: 1,209,690,000 | H84: 264,290,000 | I84: 0 | J84: 690,000 | K84: =IF(SUM(Table2[[#This Row],[Taxes]:[Infrastructure Improvement Payments]])=0,"",SUM(Table2[[#This Row],[Taxes]:[Infrastructure Improvement Payments]])) -> 28,800,180,000
K85: =IF(SUM(Table2[[#This Row],[Taxes]:[Infrastructure Improvement Payments]])=0,"",SUM(Table2[[#This Row],[Taxes]:[Infrastructure Improvement Payments]])) -> 
A86: Additional Notes: | B86: All payments are reported in CNY and have been rounded to the nearest CNY10,000. Where payments were made in currencies other than CNY, the payments were converted into CNY using a weighted average of the exchange rates during the period. The weighted average exchange rate used was CNY 6.6201 to USD 1.00. | AC86: Benin | CW86: HNL
A87: 1 Enter the proper name of the Payee receiving the money (i.e. the municipality of x, the province of y, national government of z). | AC87: Bermuda | CW87: HRK
A88: 2 Optional field. | AC88: Bhutan | CW88: HTG
A89: 3 When payments are made in-kind, the notes field must highlight which payment includes in-kind contributions and the method for calculating the value of the payment. | AC89: Bolivia, Plurinational State of | CW89: HUF
A90: 4 Any payments made in currencies other than the report currency must be identified. The Reporting Entity may use the Additional notes row or the Notes column to identify any payments that are converted, along with the exchange rate and primary method used for currency conversions. | AC90: Bonaire, Sint Eustatius and Saba | CW90: IDR
AC91: Bosnia and Herzegovina | CW91: ILS
AC92: Botswana | CW92: INR
AC93: Bouvet Island | CW93: IQD
AC95: British Indian Ocean Territory | CW95: ISK
AC96: Brunei Darussalam | CW96: JMD
AC97: Bulgaria | CW97: JOD
AC98: Burkina Faso | CW98: JPY
AC99: Burundi | CW99: KES
AC100: Cabo Verde | CW100: KGS
AC101: Cambodia | CW101: KHR
AC102: Cameroon | CW102: KMF
AC103: Cayman Islands | CW103: KPW
AC104: Central African Republic | CW104: KRW
AC105: Chad | CW105: KWD
AC106: Chile | CW106: KYD
AC107: China | CW107: KZT
AC108: Christmas Island | CW108: LAK
AC109: Cocos (Keeling) Islands | CW109: LBP
AC110: Colombia | CW110: LKR
AC111: Comoros | CW111: LRD
AC112: Congo | CW112: LSL
AC113: Congo, the Democratic Republic of the | CW113: LYD
AC114: Cook Islands | CW114: MAD
AC115: Costa Rica | CW115: MDL
AC116: Côte d'Ivoire | CW116: MGA
AC117: Croatia | CW117: MKD
AC118: Cuba | CW118: MMK
AC119: Curaçao | CW119: MNT
AC120: Cyprus | CW120: MOP
AC121: Czechia | CW121: MRO
AC122: Denmark | CW122: MUR
AC123: Djibouti | CW123: MVR
AC124: Dominica | CW124: MWK
AC125: Dominican Republic | CW125: MXN
AC126: Ecuador | CW126: MXV
AC127: Egypt | CW127: MYR
AC128: El Salvador | CW128: MZN
AC129: Equatorial Guinea | CW129: NAD
AC130: Eritrea | CW130: NGN
AC131: Estonia | CW131: NIO
AC132: Ethiopia | CW132: NOK
AC133: Falkland Islands (Malvinas) | CW133: NPR
AC134: Faroe Islands | CW134: NZD
AC135: Fiji | CW135: OMR
AC136: Finland | CW136: PAB
AC137: France | CW137: PEN
AC138: French Guiana | CW138: PGK
AC139: French Polynesia | CW139: PHP
AC140: French Southern Territories | CW140: PKR
AC141: Gabon | CW141: PLN
AC142: Gambia | CW142: PYG
AC143: Georgia | CW143: QAR
AC144: Germany | CW144: RON
AC145: Ghana | CW145: RSD
AC146: Gibraltar | CW146: RUB
AC147: Greece | CW147: RWF
AC148: Greenland | CW148: SAR
AC149: Grenada | CW149: SBD
AC150: Guadeloupe | CW150: SCR
AC151: Guam | CW151: SDG
AC152: Guatemala | CW152: SEK
AC153: Guernsey | CW153: SGD
AC154: Guinea | CW154: SHP
AC155: Guinea-Bissau | CW155: SLL
AC156: Guyana | CW156: SOS
AC157: Haiti | CW157: SRD
AC158: Heard Island and McDonald Islands | CW158: SSP
AC159: Holy See | CW159: STD
AC160: Honduras | CW160: SVC
AC161: Hong Kong | CW161: SYP
AC162: Hungary | CW162: SZL
AC163: Iceland | CW163: THB
AC164: India | CW164: TJS
AC165: Indonesia | CW165: TMT
AC166: Iran, Islamic Republic of | CW166: TND
AC167: Iraq | CW167: TOP
AC168: Ireland | CW168: TRY
AC169: Isle of Man | CW169: TTD
AC170: Israel | CW170: TWD
AC171: Italy | CW171: TZS
AC172: Jamaica | CW172: UAH
AC173: Japan | CW173: UGX
AC174: Jersey | CW174: USN
AC175: Jordan | CW175: UYI
AC176: Kazakhstan | CW176: UYU
AC177: Kenya | CW177: UZS
AC178: Kiribati | CW178: VEF
AC179: Korea, Democratic People's Republic of | CW179: VND
AC180: Korea, Republic of | CW180: VUV
AC181: Kuwait | CW181: WST
AC182: Kyrgyzstan | CW182: XAF
AC183: Lao People's Democratic Republic | CW183: XAG
AC184: Latvia | CW184: XAU
AC185: Lebanon | CW185: XBA
AC186: Lesotho | CW186: XBB
AC187: Liberia | CW187: XBC
AC188: Libya | CW188: XBD
AC189: Liechtenstein | CW189: XCD
AC190: Lithuania | CW190: XDR
AC191: Luxembourg | CW191: XOF
AC192: Macao | CW192: XPD
AC193: Macedonia, the former Yugoslav Republic of | CW193: XPF
AC194: Madagascar | CW194: XPT
AC195: Malawi | CW195: XSU
AC196: Malaysia | CW196: XTS
AC197: Maldives | CW197: XUA
AC198: Mali | CW198: XXX
AC199: Malta | CW199: YER
AC200: Marshall Islands | CW200: ZAR
AC201: Martinique | CW201: ZMW
... 109 more rows

Sheet Payments by Project
A1: Extractive Sector Transparency Measures Act - Annual Report | AB1: Canada
AB2: Canada -Alberta
AB3: Canada -British Columbia
A4: Reporting Year | B4: From: | C4: ='Cover Page - do not edit'!C3 -> 2018-01-01 | D4: To: | E4: ='Cover Page - do not edit'!E3 -> 2018-12-31 | AB4: Canada -Manitoba
A5: Reporting Entity Name | B5: ='Cover Page - do not edit'!B2:G2 -> CNOOC Limited | G5: Currency of the Report | H5: =IF('Data Entry'!C21="","",'Data Entry'!C21) -> CNY | AB5: Canada -New Brunswick
A6: Reporting Entity ESTMA Identification Number | B6: ='Cover Page - do not edit'!B4 -> E645951 | AB6: Canada -Newfoundland and Labrador
A7: Subsidiary Reporting Entities (if necessary) | B7: ='Cover Page - do not edit'!B8:G8 -> CNOOC Petroleum North America ULC E900333, CNOOC Canada Energy Ltd. E231597 | AB7: Canada -Northwest Territories
A8: Payments by Project | AB8: Canada -Nova Scotia
A9: Country | B9: Project Name1 | C9: Taxes | D9: Royalties | E9: Fees | F9: Production Entitlements | G9: Bonuses | H9: Dividends | I9: Infrastructure Improvement Payments | J9: Total Amount paid by Project | K9: Notes23 | AB9: Canada -Nunavut
A10: China | B10: Bohai | C10: 4,212,050,000 | D10: 641,650,000 | E10: 67,170,000 | F10: 987,840,000 | G10: 0 | H10: 0 | I10: 0 | J10: =IF(SUM(Table25[[#This Row],[Taxes]:[Infrastructure Improvement Payments]])=0,"",SUM(Table25[[#This Row],[Taxes]:[Infrastructure Improvement Payments]])) -> 5,908,710,000 | AB10: Canada -Ontario
A11: China | B11: Western South China Sea | C11: 1,401,730,000 | D11: 0 | E11: 3,310,000 | F11: 35,950,000 | G11: 0 | H11: 0 | I11: 0 | J11: =IF(SUM(Table25[[#This Row],[Taxes]:[Infrastructure Improvement Payments]])=0,"",SUM(Table25[[#This Row],[Taxes]:[Infrastructure Improvement Payments]])) -> 1,440,990,000 | AB11: Canada -Prince Edward Island
A12: China | B12: Eastern South China Sea | C12: 2,172,100,000 | D12: 46,470,000 | E12: 2,340,000 | F12: 178,240,000 | G12: 0 | H12: 0 | I12: 0 | J12: =IF(SUM(Table25[[#This Row],[Taxes]:[Infrastructure Improvement Payments]])=0,"",SUM(Table25[[#This Row],[Taxes]:[Infrastructure Improvement Payments]])) -> 2,399,150,000 | AB12: Canada -Quebec
A13: China | B13: East China Sea | C13: 167,430,000 | D13: 0 | E13: 900,000 | F13: 0 | G13: 0 | H13: 0 | I13: 0 | J13: =IF(SUM(Table25[[#This Row],[Taxes]:[Infrastructure Improvement Payments]])=0,"",SUM(Table25[[#This Row],[Taxes]:[Infrastructure Improvement Payments]])) -> 168,330,000 | AB13: Canada -Saskatchewan
A14: China | B14: Entity level payment | C14: 11,773,780,000 | D14: 0 | E14: 0 | F14: 0 | G14: 0 | H14: 0 | I14: 0 | J14: =IF(SUM(Table25[[#This Row],[Taxes]:[Infrastructure Improvement Payments]])=0,"",SUM(Table25[[#This Row],[Taxes]:[Infrastructure Improvement Payments]])) -> 11,773,780,000 | AB14: Afghanistan
A15: Australia | B15: North West Shelf | C15: 209,480,000 | D15: 107,220,000 | E15: 0 | F15: 0 | G15: 0 | H15: 0 | I15: 0 | J15: =IF(SUM(Table25[[#This Row],[Taxes]:[Infrastructure Improvement Payments]])=0,"",SUM(Table25[[#This Row],[Taxes]:[Infrastructure Improvement Payments]])) -> 316,700,000 | AB15: Åland Islands
A16: Congo | B16: Haute Mer A | C16: 240,000 | D16: 10,000 | E16: 2,050,000 | F16: 0 | G16: 0 | H16: 0 | I16: 0 | J16: =IF(SUM(Table25[[#This Row],[Taxes]:[Infrastructure Improvement Payments]])=0,"",SUM(Table25[[#This Row],[Taxes]:[Infrastructure Improvement Payments]])) -> 2,300,000 | AB16: Albania
A17: Indonesia | B17: SES | C17: 125,260,000 | D17: 0 | E17: 0 | F17: 0 | G17: 0 | H17: 0 | I17: 0 | J17: =IF(SUM(Table25[[#This Row],[Taxes]:[Infrastructure Improvement Payments]])=0,"",SUM(Table25[[#This Row],[Taxes]:[Infrastructure Improvement Payments]])) -> 125,260,000 | AB17: Algeria
A18: Indonesia | B18: Tangguh | C18: 743,920,000 | D18: 0 | E18: 0 | F18: 0 | G18: 0 | H18: 0 | I18: 0 | J18: =IF(SUM(Table25[[#This Row],[Taxes]:[Infrastructure Improvement Payments]])=0,"",SUM(Table25[[#This Row],[Taxes]:[Infrastructure Improvement Payments]])) -> 743,920,000 | AB18: American Samoa
A19: Uganda | B19: EA1,EA2,EA3A | C19: 0 | D19: 0 | E19: 2,140,000 | F19: 0 | G19: 0 | H19: 0 | I19: 0 | J19: =IF(SUM(Table25[[#This Row],[Taxes]:[Infrastructure Improvement Payments]])=0,"",SUM(Table25[[#This Row],[Taxes]:[Infrastructure Improvement Payments]])) -> 2,140,000 | AB19: Andorra
A20: Trinidad and Tobago | B20: 2C,3A | C20: 0 | D20: 0 | E20: 2,640,000 | F20: 0 | G20: 0 | H20: 0 | I20: 0 | J20: =IF(SUM(Table25[[#This Row],[Taxes]:[Infrastructure Improvement Payments]])=0,"",SUM(Table25[[#This Row],[Taxes]:[Infrastructure Improvement Payments]])) -> 2,640,000 | AB20: Angola
A21: Equatorial Guinea | B21: Block3 | C21: 0 | D21: 0 | E21: 1,940,000 | F21: 0 | G21: 0 | H21: 0 | I21: 0 | J21: =IF(SUM(Table25[[#This Row],[Taxes]:[Infrastructure Improvement Payments]])=0,"",SUM(Table25[[#This Row],[Taxes]:[Infrastructure Improvement Payments]])) -> 1,940,000 | AB21: Anguilla
A22: Brazil | B22: 592、ACFO、Pau、libra | C22: 2,070,000 | D22: 66,450,000 | E22: 0 | F22: 0 | G22: 264,290,000 | H22: 0 | I22: 0 | J22: =IF(SUM(Table25[[#This Row],[Taxes]:[Infrastructure Improvement Payments]])=0,"",SUM(Table25[[#This Row],[Taxes]:[Infrastructure Improvement Payments]])) -> 332,810,000 | AB22: Antarctica
A23: Mexico | B23: E&P Mexico Block 1&4 | C23: 25,050,000 | D23: 0 | E23: 18,980,000 | F23: 0 | G23: 0 | H23: 0 | I23: 0 | J23: =IF(SUM(Table25[[#This Row],[Taxes]:[Infrastructure Improvement Payments]])=0,"",SUM(Table25[[#This Row],[Taxes]:[Infrastructure Improvement Payments]])) -> 44,030,000 | AB23: Antigua and Barbuda
A24: United States of America | B24: Appomattox | C24: 0 | D24: 0 | E24: 370,000 | F24: 0 | G24: 0 | H24: 0 | I24: 0 | J24: =IF(SUM(Table25[[#This Row],[Taxes]:[Infrastructure Improvement Payments]])=0,"",SUM(Table25[[#This Row],[Taxes]:[Infrastructure Improvement Payments]])) -> 370,000 | AB24: Argentina
A25: United States of America | B25: Bull Run | C25: 0 | D25: 0 | E25: 150,000 | F25: 0 | G25: 0 | H25: 0 | I25: 0 | J25: =IF(SUM(Table25[[#This Row],[Taxes]:[Infrastructure Improvement Payments]])=0,"",SUM(Table25[[#This Row],[Taxes]:[Infrastructure Improvement Payments]])) -> 150,000 | AB25: Armenia
A26: United States of America | B26: Cumberland Church | C26: 0 | D26: 0 | E26: 150,000 | F26: 0 | G26: 0 | H26: 0 | I26: 0 | J26: =IF(SUM(Table25[[#This Row],[Taxes]:[Infrastructure Improvement Payments]])=0,"",SUM(Table25[[#This Row],[Taxes]:[Infrastructure Improvement Payments]])) -> 150,000 | AB26: Aruba
A27: United States of America | B27: Cut-N-Shoot II | C27: 0 | D27: 0 | E27: 310,000 | F27: 0 | G27: 0 | H27: 0 | I27: 0 | J27: =IF(SUM(Table25[[#This Row],[Taxes]:[Infrastructure Improvement Payments]])=0,"",SUM(Table25[[#This Row],[Taxes]:[Infrastructure Improvement Payments]])) -> 310,000 | AB27: Australia
A28: United States of America | B28: Deep Rydberg | C28: 0 | D28: 0 | E28: 150,000 | F28: 0 | G28: 0 | H28: 0 | I28: 0 | J28: =IF(SUM(Table25[[#This Row],[Taxes]:[Infrastructure Improvement Payments]])=0,"",SUM(Table25[[#This Row],[Taxes]:[Infrastructure Improvement Payments]])) -> 150,000 | AB28: Austria
A29: United States of America | B29: Dover | C29: 0 | D29: 0 | E29: 120,000 | F29: 0 | G29: 0 | H29: 0 | I29: 0 | J29: =IF(SUM(Table25[[#This Row],[Taxes]:[Infrastructure Improvement Payments]])=0,"",SUM(Table25[[#This Row],[Taxes]:[Infrastructure Improvement Payments]])) -> 120,000 | AB29: Azerbaijan
A30: United States of America | B30: Dover N (Castle Valley) | C30: 0 | D30: 0 | E30: 130,000 | F30: 0 | G30: 0 | H30: 0 | I30: 0 | J30: =IF(SUM(Table25[[#This Row],[Taxes]:[Infrastructure Improvement Payments]])=0,"",SUM(Table25[[#This Row],[Taxes]:[Infrastructure Improvement Payments]])) -> 130,000 | AB30: Bahamas
A31: United States of America | B31: Eagleford | C31: 292,550,000 | D31: 7,720,000 | E31: 0 | F31: 0 | G31: 0 | H31: 0 | I31: 0 | J31: =IF(SUM(Table25[[#This Row],[Taxes]:[Infrastructure Improvement Payments]])=0,"",SUM(Table25[[#This Row],[Taxes]:[Infrastructure Improvement Payments]])) -> 300,270,000 | AB31: Bahrain
A32: United States of America | B32: Vicksburg (Gettysburg) | C32: 0 | D32: 0 | E32: 60,000 | F32: 0 | G32: 0 | H32: 0 | I32: 0 | J32: =IF(SUM(Table25[[#This Row],[Taxes]:[Infrastructure Improvement Payments]])=0,"",SUM(Table25[[#This Row],[Taxes]:[Infrastructure Improvement Payments]])) -> 60,000
A33: United States of America | B33: GC 6 | C33: 0 | D33: 4,320,000 | E33: 0 | F33: 0 | G33: 0 | H33: 0 | I33: 0 | J33: =IF(SUM(Table25[[#This Row],[Taxes]:[Infrastructure Improvement Payments]])=0,"",SUM(Table25[[#This Row],[Taxes]:[Infrastructure Improvement Payments]])) -> 4,320,000
A34: United States of America | B34: Gunnison | C34: 0 | D34: 0 | E34: 70,000 | F34: 0 | G34: 0 | H34: 0 | I34: 0 | J34: =IF(SUM(Table25[[#This Row],[Taxes]:[Infrastructure Improvement Payments]])=0,"",SUM(Table25[[#This Row],[Taxes]:[Infrastructure Improvement Payments]])) -> 70,000
A35: United States of America | B35: HI 474/489 | C35: 0 | D35: 280,000 | E35: 0 | F35: 0 | G35: 0 | H35: 0 | I35: 0 | J35: =IF(SUM(Table25[[#This Row],[Taxes]:[Infrastructure Improvement Payments]])=0,"",SUM(Table25[[#This Row],[Taxes]:[Infrastructure Improvement Payments]])) -> 280,000
A36: United States of America | B36: HI 563/582 | C36: 0 | D36: 250,000 | E36: 0 | F36: 0 | G36: 0 | H36: 0 | I36: 0 | J36: =IF(SUM(Table25[[#This Row],[Taxes]:[Infrastructure Improvement Payments]])=0,"",SUM(Table25[[#This Row],[Taxes]:[Infrastructure Improvement Payments]])) -> 250,000
A37: United States of America | B37: Longhorn | C37: 0 | D37: 8,910,000 | E37: 0 | F37: 0 | G37: 0 | H37: 0 | I37: 0 | J37: =IF(SUM(Table25[[#This Row],[Taxes]:[Infrastructure Improvement Payments]])=0,"",SUM(Table25[[#This Row],[Taxes]:[Infrastructure Improvement Payments]])) -> 8,910,000
A38: United States of America | B38: Nanbu | C38: 0 | D38: 0 | E38: 310,000 | F38: 0 | G38: 0 | H38: 0 | I38: 0 | J38: =IF(SUM(Table25[[#This Row],[Taxes]:[Infrastructure Improvement Payments]])=0,"",SUM(Table25[[#This Row],[Taxes]:[Infrastructure Improvement Payments]])) -> 310,000
A39: United States of America | B39: Niobrara | C39: 67,360,000 | D39: 0 | E39: 0 | F39: 0 | G39: 0 | H39: 0 | I39: 0 | J39: =IF(SUM(Table25[[#This Row],[Taxes]:[Infrastructure Improvement Payments]])=0,"",SUM(Table25[[#This Row],[Taxes]:[Infrastructure Improvement Payments]])) -> 67,360,000
A40: United States of America | B40: Picketts Mill | C40: 0 | D40: 0 | E40: 150,000 | F40: 0 | G40: 0 | H40: 0 | I40: 0 | J40: =IF(SUM(Table25[[#This Row],[Taxes]:[Infrastructure Improvement Payments]])=0,"",SUM(Table25[[#This Row],[Taxes]:[Infrastructure Improvement Payments]])) -> 150,000
A41: United States of America | B41: Red Dog | C41: 0 | D41: 0 | E41: 120,000 | F41: 0 | G41: 0 | H41: 0 | I41: 0 | J41: =IF(SUM(Table25[[#This Row],[Taxes]:[Infrastructure Improvement Payments]])=0,"",SUM(Table25[[#This Row],[Taxes]:[Infrastructure Improvement Payments]])) -> 120,000
A42: United States of America | B42: SMI 257 | C42: 0 | D42: 5,370,000 | E42: 0 | F42: 0 | G42: 0 | H42: 0 | I42: 0 | J42: =IF(SUM(Table25[[#This Row],[Taxes]:[Infrastructure Improvement Payments]])=0,"",SUM(Table25[[#This Row],[Taxes]:[Infrastructure Improvement Payments]])) -> 5,370,000
A43: United States of America | B43: Stampede | C43: 0 | D43: 80,630,000 | E43: 70,000 | F43: 0 | G43: 0 | H43: 0 | I43: 0 | J43: =IF(SUM(Table25[[#This Row],[Taxes]:[Infrastructure Improvement Payments]])=0,"",SUM(Table25[[#This Row],[Taxes]:[Infrastructure Improvement Payments]])) -> 80,700,000
A44: United States of America | B44: Vicksburg | C44: 0 | D44: 0 | E44: 180,000 | F44: 0 | G44: 0 | H44: 0 | I44: 0 | J44: =IF(SUM(Table25[[#This Row],[Taxes]:[Infrastructure Improvement Payments]])=0,"",SUM(Table25[[#This Row],[Taxes]:[Infrastructure Improvement Payments]])) -> 180,000
A45: United States of America | B45: West Abilene | C45: 0 | D45: 18,380,000 | E45: 0 | F45: 0 | G45: 0 | H45: 0 | I45: 0 | J45: =IF(SUM(Table25[[#This Row],[Taxes]:[Infrastructure Improvement Payments]])=0,"",SUM(Table25[[#This Row],[Taxes]:[Infrastructure Improvement Payments]])) -> 18,380,000
A46: United States of America | B46: Wrigley | C46: 0 | D46: 20,000 | E46: 0 | F46: 0 | G46: 0 | H46: 0 | I46: 0 | J46: =IF(SUM(Table25[[#This Row],[Taxes]:[Infrastructure Improvement Payments]])=0,"",SUM(Table25[[#This Row],[Taxes]:[Infrastructure Improvement Payments]])) -> 20,000
A47: United States of America | B47: Aspen | C47: 0 | D47: 0 | E47: 90,000 | F47: 0 | G47: 0 | H47: 0 | I47: 0 | J47: =IF(SUM(Table25[[#This Row],[Taxes]:[Infrastructure Improvement Payments]])=0,"",SUM(Table25[[#This Row],[Taxes]:[Infrastructure Improvement Payments]])) -> 90,000
A48: United States of America | B48: GC 137 | C48: 0 | D48: -1,230,000 | E48: 0 | F48: 0 | G48: 0 | H48: 0 | I48: 0 | J48: =IF(SUM(Table25[[#This Row],[Taxes]:[Infrastructure Improvement Payments]])=0,"",SUM(Table25[[#This Row],[Taxes]:[Infrastructure Improvement Payments]])) -> -1,230,000
A49: United States of America | B49: Various projects | C49: 0 | D49: 0 | E49: 1,500,000 | F49: 0 | G49: 0 | H49: 0 | I49: 0 | J49: =IF(SUM(Table25[[#This Row],[Taxes]:[Infrastructure Improvement Payments]])=0,"",SUM(Table25[[#This Row],[Taxes]:[Infrastructure Improvement Payments]])) -> 1,500,000
A50: Colombia | B50: Guando | C50: 5,140,000 | D50: 0 | E50: 0 | F50: 7,660,000 | G50: 0 | H50: 0 | I50: 0 | J50: =IF(SUM(Table25[[#This Row],[Taxes]:[Infrastructure Improvement Payments]])=0,"",SUM(Table25[[#This Row],[Taxes]:[Infrastructure Improvement Payments]])) -> 12,800,000
A51: Guyana | B51: Stabroek | C51: 0 | D51: 0 | E51: 2,150,000 | F51: 0 | G51: 0 | H51: 0 | I51: 0 | J51: =IF(SUM(Table25[[#This Row],[Taxes]:[Infrastructure Improvement Payments]])=0,"",SUM(Table25[[#This Row],[Taxes]:[Infrastructure Improvement Payments]])) -> 2,150,000
A52: Nigeria | B52: OML 138 | C52: 38,910,000 | D52: 353,700,000 | E52: 6,130,000 | F52: 0 | G52: 0 | H52: 0 | I52: 690,000 | J52: =IF(SUM(Table25[[#This Row],[Taxes]:[Infrastructure Improvement Payments]])=0,"",SUM(Table25[[#This Row],[Taxes]:[Infrastructure Improvement Payments]])) -> 399,430,000
A53: Nigeria | B53: OML 130 | C53: 77,980,000 | D53: 0 | E53: 202,550,000 | F53: 0 | G53: 0 | H53: 0 | I53: 0 | J53: =IF(SUM(Table25[[#This Row],[Taxes]:[Infrastructure Improvement Payments]])=0,"",SUM(Table25[[#This Row],[Taxes]:[Infrastructure Improvement Payments]])) -> 280,530,000
A54: Canada | B54: Balzac Gas Plant | C54: 380,000 | D54: 0 | E54: 690,000 | F54: 0 | G54: 0 | H54: 0 | I54: 0 | J54: =IF(SUM(Table25[[#This Row],[Taxes]:[Infrastructure Improvement Payments]])=0,"",SUM(Table25[[#This Row],[Taxes]:[Infrastructure Improvement Payments]])) -> 1,070,000
A55: Canada | B55: Crossfield | C55: 0 | D55: 10,000 | E55: 20,000 | F55: 0 | G55: 0 | H55: 0 | I55: 0 | J55: =IF(SUM(Table25[[#This Row],[Taxes]:[Infrastructure Improvement Payments]])=0,"",SUM(Table25[[#This Row],[Taxes]:[Infrastructure Improvement Payments]])) -> 30,000
A56: Canada | B56: EL1144 | C56: 0 | D56: 0 | E56: 400,000 | F56: 0 | G56: 0 | H56: 0 | I56: 0 | J56: =IF(SUM(Table25[[#This Row],[Taxes]:[Infrastructure Improvement Payments]])=0,"",SUM(Table25[[#This Row],[Taxes]:[Infrastructure Improvement Payments]])) -> 400,000
A57: Canada | B57: EL1150 | C57: 0 | D57: 0 | E57: 420,000 | F57: 0 | G57: 0 | H57: 0 | I57: 0 | J57: =IF(SUM(Table25[[#This Row],[Taxes]:[Infrastructure Improvement Payments]])=0,"",SUM(Table25[[#This Row],[Taxes]:[Infrastructure Improvement Payments]])) -> 420,000
A58: Canada | B58: Horn River | C58: 2,730,000 | D58: 0 | E58: 9,390,000 | F58: 0 | G58: 0 | H58: 0 | I58: 0 | J58: =IF(SUM(Table25[[#This Row],[Taxes]:[Infrastructure Improvement Payments]])=0,"",SUM(Table25[[#This Row],[Taxes]:[Infrastructure Improvement Payments]])) -> 12,120,000
A59: Canada | B59: Leismer | C59: 0 | D59: 0 | E59: 1,000,000 | F59: 0 | G59: 0 | H59: 0 | I59: 0 | J59: =IF(SUM(Table25[[#This Row],[Taxes]:[Infrastructure Improvement Payments]])=0,"",SUM(Table25[[#This Row],[Taxes]:[Infrastructure Improvement Payments]])) -> 1,000,000
A60: Canada | B60: Little Horse | C60: 0 | D60: 0 | E60: 90,000 | F60: 0 | G60: 0 | H60: 0 | I60: 0 | J60: =IF(SUM(Table25[[#This Row],[Taxes]:[Infrastructure Improvement Payments]])=0,"",SUM(Table25[[#This Row],[Taxes]:[Infrastructure Improvement Payments]])) -> 90,000
A61: Canada | B61: Long Lake/K1A | C61: 63,170,000 | D61: 103,450,000 | E61: 26,170,000 | F61: 0 | G61: 0 | H61: 0 | I61: 0 | J61: =IF(SUM(Table25[[#This Row],[Taxes]:[Infrastructure Improvement Payments]])=0,"",SUM(Table25[[#This Row],[Taxes]:[Infrastructure Improvement Payments]])) -> 192,790,000
A62: Canada | B62: Various projects | C62: 190,000 | D62: 0 | E62: 1,880,000 | F62: 0 | G62: 0 | H62: 0 | I62: 0 | J62: =IF(SUM(Table25[[#This Row],[Taxes]:[Infrastructure Improvement Payments]])=0,"",SUM(Table25[[#This Row],[Taxes]:[Infrastructure Improvement Payments]])) -> 2,070,000
A63: Canada | B63: Long Lake | C63: 0 | D63: 0 | E63: 1,300,000 | F63: 0 | G63: 0 | H63: 0 | I63: 0 | J63: =IF(SUM(Table25[[#This Row],[Taxes]:[Infrastructure Improvement Payments]])=0,"",SUM(Table25[[#This Row],[Taxes]:[Infrastructure Improvement Payments]])) -> 1,300,000
A64: Canada | B64: Long Lake - Oil Sands | C64: 0 | D64: 0 | E64: 730,000 | F64: 0 | G64: 0 | H64: 0 | I64: 0 | J64: =IF(SUM(Table25[[#This Row],[Taxes]:[Infrastructure Improvement Payments]])=0,"",SUM(Table25[[#This Row],[Taxes]:[Infrastructure Improvement Payments]])) -> 730,000
A65: Canada | B65: Atlantic Canada | C65: 0 | D65: 0 | E65: 250,000 | F65: 0 | G65: 0 | H65: 0 | I65: 0 | J65: =IF(SUM(Table25[[#This Row],[Taxes]:[Infrastructure Improvement Payments]])=0,"",SUM(Table25[[#This Row],[Taxes]:[Infrastructure Improvement Payments]])) -> 250,000
A66: United Kingdom of Great Britain and Northern Ireland | B66: Blackbird | C66: 0 | D66: 0 | E66: 120,000 | F66: 0 | G66: 0 | H66: 0 | I66: 0 | J66: =IF(SUM(Table25[[#This Row],[Taxes]:[Infrastructure Improvement Payments]])=0,"",SUM(Table25[[#This Row],[Taxes]:[Infrastructure Improvement Payments]])) -> 120,000
A67: United Kingdom of Great Britain and Northern Ireland | B67: Buzzard | C67: 0 | D67: 0 | E67: 25,880,000 | F67: 0 | G67: 0 | H67: 0 | I67: 0 | J67: =IF(SUM(Table25[[#This Row],[Taxes]:[Infrastructure Improvement Payments]])=0,"",SUM(Table25[[#This Row],[Taxes]:[Infrastructure Improvement Payments]])) -> 25,880,000
A68: United Kingdom of Great Britain and Northern Ireland | B68: Ettrick | C68: 0 | D68: 0 | E68: 200,000 | F68: 0 | G68: 0 | H68: 0 | I68: 0 | J68: =IF(SUM(Table25[[#This Row],[Taxes]:[Infrastructure Improvement Payments]])=0,"",SUM(Table25[[#This Row],[Taxes]:[Infrastructure Improvement Payments]])) -> 200,000
A69: United Kingdom of Great Britain and Northern Ireland | B69: Exploration | C69: 0 | D69: 0 | E69: 24,920,000 | F69: 0 | G69: 0 | H69: 0 | I69: 0 | J69: =IF(SUM(Table25[[#This Row],[Taxes]:[Infrastructure Improvement Payments]])=0,"",SUM(Table25[[#This Row],[Taxes]:[Infrastructure Improvement Payments]])) -> 24,920,000
A70: United Kingdom of Great Britain and Northern Ireland | B70: GEAD | C70: 0 | D70: 0 | E70: 12,430,000 | F70: 0 | G70: 0 | H70: 0 | I70: 0 | J70: =IF(SUM(Table25[[#This Row],[Taxes]:[Infrastructure Improvement Payments]])=0,"",SUM(Table25[[#This Row],[Taxes]:[Infrastructure Improvement Payments]])) -> 12,430,000
A71: United Kingdom of Great Britain and Northern Ireland | B71: Scott | C71: 0 | D71: 0 | E71: 3,370,000 | F71: 0 | G71: 0 | H71: 0 | I71: 0 | J71: =IF(SUM(Table25[[#This Row],[Taxes]:[Infrastructure Improvement Payments]])=0,"",SUM(Table25[[#This Row],[Taxes]:[Infrastructure Improvement Payments]])) -> 3,370,000
A72: United Kingdom of Great Britain and Northern Ireland | B72: Taxes - UK | C72: 4,065,820,000 | D72: 0 | E72: 0 | F72: 0 | G72: 0 | H72: 0 | I72: 0 | J72: =IF(SUM(Table25[[#This Row],[Taxes]:[Infrastructure Improvement Payments]])=0,"",SUM(Table25[[#This Row],[Taxes]:[Infrastructure Improvement Payments]])) -> 4,065,820,000
A73: United Kingdom of Great Britain and Northern Ireland | B73: Telford | C73: 0 | D73: 0 | E73: 140,000 | F73: 0 | G73: 0 | H73: 0 | I73: 0 | J73: =IF(SUM(Table25[[#This Row],[Taxes]:[Infrastructure Improvement Payments]])=0,"",SUM(Table25[[#This Row],[Taxes]:[Infrastructure Improvement Payments]])) -> 140,000
A74: United Kingdom of Great Britain and Northern Ireland | B74: Rochelle | C74: 0 | D74: 0 | E74: 1,690,000 | F74: 0 | G74: 0 | H74: 0 | I74: 0 | J74: =IF(SUM(Table25[[#This Row],[Taxes]:[Infrastructure Improvement Payments]])=0,"",SUM(Table25[[#This Row],[Taxes]:[Infrastructure Improvement Payments]])) -> 1,690,000
A75: Ireland | B75: Exploration | C75: 0 | D75: 0 | E75: 1,920,000 | F75: 0 | G75: 0 | H75: 0 | I75: 0 | J75: =IF(SUM(Table25[[#This Row],[Taxes]:[Infrastructure Improvement Payments]])=0,"",SUM(Table25[[#This Row],[Taxes]:[Infrastructure Improvement Payments]])) -> 1,920,000
A76: Senegal | B76: Exploration | C76: 0 | D76: 0 | E76: 5,250,000 | F76: 0 | G76: 0 | H76: 0 | I76: 0 | J76: =IF(SUM(Table25[[#This Row],[Taxes]:[Infrastructure Improvement Payments]])=0,"",SUM(Table25[[#This Row],[Taxes]:[Infrastructure Improvement Payments]])) -> 5,250,000
A77: Ghana | B77: Exploration | C77: 0 | D77: 0 | E77: 70,000 | F77: 0 | G77: 0 | H77: 0 | I77: 0 | J77: =IF(SUM(Table25[[#This Row],[Taxes]:[Infrastructure Improvement Payments]])=0,"",SUM(Table25[[#This Row],[Taxes]:[Infrastructure Improvement Payments]])) -> 70,000
B79: Total | C79: =SUBTOTAL(109,C10:C78) -> 25,447,340,000 | D79: =SUBTOTAL(109,D10:D78) -> 1,443,610,000 | E79: 434,560,000 | F79: 1,209,690,000 | G79: 264,290,000 | H79: 0 | I79: 690,000 | J79: =IF(SUM(Table25[[#This Row],[Taxes]:[Infrastructure Improvement Payments]])=0,"",SUM(Table25[[#This Row],[Taxes]:[Infrastructure Improvement Payments]])) -> 28,800,180,000
A81: Additional Notes3: | B81: All payments are reported in CNY and have been rounded to the nearest CNY10,000. Where payments were made in currencies other than CNY, the payments were converted into CNY using a weighted average of the exchange rates during the period. The weighted average exchange rate used was CNY 6.6201 to USD 1.00. | AB81: Benin
A82: 1 Enter the project that the payment is attributed to. Some payments may not be attributable to a specific project, and do not need to be disclosed in the "Payments by Project" table. | AB82: Bermuda
A83: 2 When payments are made in-kind, the notes field must highlight which payment includes in-kind contributions and the method for calculating the value of the payment. | AB83: Bolivia, Plurinational State of
A84: 3 Any payments made in currencies other than the report currency must be identified. The Reporting Entity may use the "Additional Notes" row or the "Notes" column to identify any payments that are converted, along with the exchange rate and primary method used for currency conversions. | AB84: Bonaire, Sint Eustatius and Saba
AB85: Bosnia and Herzegovina
AB86: Botswana
AB88: Brazil
AB89: British Indian Ocean Territory
AB90: Brunei Darussalam
AB91: Bulgaria
AB92: Burkina Faso
AB93: Burundi
AB94: Cabo Verde
AB95: Cambodia
AB96: Cameroon
AB97: Cayman Islands
AB98: Central African Republic
AB99: Chad
AB100: Chile
AB101: China
AB102: Christmas Island
AB103: Cocos (Keeling) Islands
AB104: Colombia
AB105: Comoros
AB106: Congo
AB107: Congo, the Democratic Republic of the
AB108: Cook Islands
AB109: Costa Rica
AB110: Côte d'Ivoire
AB111: Croatia
AB112: Cuba
AB113: Curaçao
AB114: Cyprus
AB115: Czechia
AB116: Denmark
AB117: Djibouti
AB118: Dominica
AB119: Dominican Republic
AB120: Ecuador
AB121: Egypt
AB122: El Salvador
AB123: Equatorial Guinea
AB124: Eritrea
AB125: Estonia
AB126: Ethiopia
AB127: Falkland Islands (Malvinas)
AB128: Faroe Islands
AB129: Fiji
AB130: Finland
AB131: France
AB132: French Guiana
AB133: French Polynesia
AB134: French Southern Territories
AB135: Gabon
AB136: Gambia
AB137: Georgia
AB138: Germany
AB139: Ghana
AB140: Gibraltar
AB141: Greece
AB142: Greenland
AB143: Grenada
AB144: Guadeloupe
AB145: Guam
AB146: Guatemala
AB147: Guernsey
AB148: Guinea
AB149: Guinea-Bissau
AB150: Guyana
AB151: Haiti
AB152: Heard Island and McDonald Islands
AB153: Holy See
AB154: Honduras
AB155: Hong Kong
AB156: Hungary
AB157: Iceland
AB158: India
AB159: Indonesia
AB160: Iran, Islamic Republic of
AB161: Iraq
AB162: Ireland
AB163: Isle of Man
AB164: Israel
AB165: Italy
AB166: Jamaica
AB167: Japan
AB168: Jersey
AB169: Jordan
AB170: Kazakhstan
AB171: Kenya
AB172: Kiribati
AB173: Korea, Democratic People's Republic of
AB174: Korea, Republic of
AB175: Kuwait
AB176: Kyrgyzstan
AB177: Lao People's Democratic Republic
AB178: Latvia
AB179: Lebanon
AB180: Lesotho
AB181: Liberia
AB182: Libya
AB183: Liechtenstein
AB184: Lithuania
AB185: Luxembourg
AB186: Macao
AB187: Macedonia, the former Yugoslav Republic of
AB188: Madagascar
AB189: Malawi
AB190: Malaysia
AB191: Maldives
AB192: Mali
AB193: Malta
AB194: Marshall Islands
AB195: Martinique
AB196: Mauritania
AB197: Mauritius
AB198: Mayotte
AB199: Mexico
AB200: Micronesia, Federated States of
AB201: Moldova, Republic of
AB202: Monaco
AB203: Mongolia
... 101 more rows

Sheet Sheet2 (hidden)
